Cogmind - Beta 14 *** ADVENTURER MODE // 2024.10.02 @ 11:53:56 // Winter2019/RPGLIKE Player: Gallgagger Result: Self-destructed Performance ------------- Evolutions (0) 0 Regions Visited (4) 800 Robots Destroyed (47) 235 Value Destroyed (1242) 1242 Prototype IDs (3) 60 Alien Tech Used (0) 0 Bonus (0) 0 TOTAL SCORE: 2337 Bonus ------- None Cogmind --------- Core Integrity 1827/2400 Matter 300/300 Energy 320/320 System Corruption 0% Temperature Cool (0) Movement Walking (90) Location -7/Recycling Parts ------- > --- POWER (2) -------- Ion Engine Makeshift Power Source > --- PROPULSION (4+3) - Arachnoskeleton Makeshift Flight Unit > --- UTILITY (3) ------ Sensor Array Signal Interpreter Makeshift Light Armor Plating > --- WEAPON (2) ------- Medium Laser Ripper > --- INVENTORY (2) ---- Makeshift Light Armor Plating Makeshift Hammer Peak State ------------ > --- POWER ------------ Ion Engine Makeshift Power Source > --- PROPULSION ------- Arachnoskeleton Makeshift Flight Unit > --- UTILITY ---------- Sensor Array Signal Interpreter Makeshift Light Armor Plating > --- WEAPON ----------- Medium Laser Ripper > --- INVENTORY -------- Makeshift Light Armor Plating Makeshift Hammer [Rating: 41] Favorites ----------- Power Ion Engine Engine Ion Engine Propulsion Flight Unit Leg Arachnoskeleton Wheel Wheel Flight Unit Flight Unit Utility Sensor Array Device Sensor Array Processor Signal Interpreter Protection Makeshift Light Armor Plating Weapon Medium Laser Energy Gun Medium Laser Ballistic Gun Assault Rifle Impact Weapon Mace Slashing Weapon Ripper Build | -11 -10 -10 -10 -7 ------- Run | Yrd Mat Min Sub Rec Slots Evolved 7 | 4 1 . 2 . Power 1 | 1 . . . . Propulsion 3 | 1 1 . 1 . Utility 2 | 1 . . 1 . Weapon 1 | 1 . . . . Parts Attached 21 | 6 10 . 5 . Power 4 | 2 1 . 1 . Engine 4 | 2 1 . 1 . Core . | . . . . . Reactor . | . . . . . Propulsion 8 | 2 4 . 2 . Treads . | . . . . . Leg 1 | . . . 1 . Wheel 2 | 2 . . . . Hover . | . . . . . Flight 5 | . 4 . 1 . Utility 3 | . 2 . 1 . Device 1 | . 1 . . . Storage . | . . . . . Processor 1 | . 1 . . . Hackware . | . . . . . Protection 1 | . . . 1 . Artifact . | . . . . . Weapon 6 | 2 3 . 1 . Energy Gun 2 | . 2 . . . Energy Cannon . | . . . . . Ballistic Gun 2 | 2 . . . . Ballistic Cannon . | . . . . . Launcher . | . . . . . Special Weapon . | . . . . . Impact Weapon 1 | . 1 . . . Slashing Weapon 1 | . . . 1 . Piercing Weapon . | . . . . . Special Melee Weapon . | . . . . . Unidentified Prototypes 1 | . . . 1 . Parts Lost 1 | . 1 . . . Power 1 | . 1 . . . Propulsion . | . . . . . Utility . | . . . . . Weapon . | . . . . . Highest Loss Streak 1 | . 1 . . . To Critical Strikes . | . . . . . Average Slot Usage (%) 82 | . 94 100 75 64 Engine 18 | . 23 22 15 14 Leg 3 | . . . 4 7 Wheel 5 | . 24 . . . Flight 13 | . . 33 15 7 Device 8 | . 10 11 7 7 Processor 8 | . 9 11 7 7 Protection 4 | . . . 6 7 Energy Gun 9 | . 14 11 7 7 Ballistic Gun 2 | . 10 . . . Impact Weapon 2 | . . 11 1 . Slashing Weapon 4 | . . . 6 7 Peak Build Rating 41 | 6 10 10 41 41 Average Rating 25 | 4 7 10 33 41 On Entrance 13 | . 6 10 10 41 Naked Turns . | . . . . . Heaviest Build 19 | 13 15 15 19 19 Greatest Support 60 | 26 26 17 60 60 Greatest Overweight (x) 1 | 1 1 . . . Average Overweight (x) . | . . . . . Largest Inventory Capacity 2 | . . . 2 2 Average Capacity 1 | . . . 1 2 Most Carried 2 | . . . 2 2 Average Carried 1 | . . . 1 2 Final Capacity 2 | . . . 2 2 Final Carried 2 | . . . 2 2 Class Distribution -------------------- 44% | Derelict-Mutant 31% | Scavenger-Mutant 24% | Mutant Dominant Class ---------------- Mutant | -10/Materials Scavenger-Mutant | -10/Mines Derelict-Mutant | -10/Subcaves Derelict-Mutant | -7/Recycling Resources | -11 -10 -10 -10 -7 ----------- Run | Yrd Mat Min Sub Rec Matter Collected 498 | 255 166 27 50 . Remotely . | . . . . . Salvage Created 1429 | . 641 60 635 93 Parts 105 | . 47 5 48 5 Haulers Intercepted 2 | . 2 . . . Recyclers Shooed . | . . . . . Parts Field Recycled . | . . . . . Retrieved Matter . | . . . . . Parts Self-Destructed 22 | . . . 22 . Prevented . | . . . . . Kills | -11 -10 -10 -10 -7 ------- Run | Yrd Mat Min Sub Rec Combat Hostiles Destroyed 40 | . 18 2 19 1 Melee 19 | . . 2 16 1 Guns 18 | . 18 . . . Classes Destroyed 7 | . 4 . 3 . Hauler 2 | . 2 . . . Turret 2 | . . . 2 . Watcher 3 | . 3 . . . Swarmer 15 | . 9 . 6 . Grunt 13 | . 9 2 2 . Sentry 2 | . . . 1 1 Subdweller 10 | . . . 10 . Best Kill Streak 5 | . 5 2 4 1 Combat Bots Only 5 | . 5 2 4 1 Max Kills in Single Turn 2 | . 2 1 1 1 Gunslinging 1 | . 1 . . . Exploded . | . . . . . Melee 1 | . . 1 1 1 Uniques/NPCs Destroyed . | . . . . . Combat | -11 -10 -10 -10 -7 -------- Run | Yrd Mat Min Sub Rec Hostile Shots Fired 308 | . 49 1 222 36 Missed 109 | . 21 . 80 8 Damage Taken 1833 | . 242 9 1415 167 Core 1364 | . 178 7 1059 120 Absorbed by Shields . | . . . . . Redirected to Core 966 | . 143 7 721 95 Ignored by Resistances 517 | . 78 3 379 57 Core Remaining (%) 100 | 100 . . . . Volleys Fired 95 | . 42 . 53 . Largest 2 | . 2 . 1 . Hottest 100 | . 100 . 50 . Shots Fired 137 | . 84 . 53 . Gun 137 | . 84 . 53 . Cannon . | . . . . . Launcher . | . . . . . Special . | . . . . . Kinetic 44 | . 44 . . . Thermal 93 | . 40 . 53 . Explosive . | . . . . . Electromagnetic . | . . . . . Robot Hit Streak 29 | . 17 . 29 . Robot Miss Streak 3 | . 3 . 1 . Penetration Max . | . . . . . Secondary Targets 2 | . 2 . . . Max Gunslinging Chain 1 | . 1 . . . Shots Hit Robots 181 | . 62 2 112 5 Core Hits 67 | . 35 1 29 2 Critical Kills 1 | . . 1 . . Critical Parts Destroyed 2 | . . 1 1 . Critical Strikes 10 | . 2 2 6 . Burn 5 | . 2 . 3 . Smash 3 | . . 2 1 . Sever 2 | . . . 2 . Melee Attacks 135 | . . 3 127 5 Impact 36 | . . 3 33 . Slashing 99 | . . . 94 5 Piercing . | . . . . . Sneak Attacks 1 | . . . . 1 Combat Hostiles 1 | . . . . 1 Follow-up Attacks . | . . . . . Damage Inflicted 3959 | . 745 92 2927 195 Guns 1387 | . 745 . 642 . Cannons . | . . . . . Explosions . | . . . . . Melee 2572 | . . 92 2285 195 Ramming . | . . . . . Kinetic 351 | . 351 . . . Thermal 1036 | . 394 . 642 . Explosive . | . . . . . Electromagnetic . | . . . . . Impact 950 | . . 92 858 . Slashing 1622 | . . . 1427 195 Piercing . | . . . . . Highest Corruption . | . . . . . Average Corruption . | . . . . . Corruption Purged . | . . . . . Corruption Blocked . | . . . . . Overload Shots . | . . . . . Overflow Damage 281 | . . 51 230 . Projectiles . | . . . . . Explosions . | . . . . . Melee 281 | . . 51 230 . Knockbacks 9 | . . . 9 . Impact 8 | . . . 8 . Kinetic . | . . . . . Secondary 1 | . . . 1 . Self-Inflicted Damage . | . . . . . Shots . | . . . . . Rammed . | . . . . . Targets Rammed . | . . . . . Kicked . | . . . . . Crushed . | . . . . . Highest Temperature 348 | . 348 . . . Average Temperature 98 | . 98 . . . Received Heat Transfer 357 | . 42 6 237 72 Siege Activations . | . . . . . Robots Corrupted 3 | . . . 3 . Combat Hostiles 3 | . . . 3 . Parts Fried 4 | . . 1 3 . Impact Corruptions 5 | . . 1 4 . Robots Melted . | . . . . . Combat Hostiles . | . . . . . Parts Melted 3 | . 2 . 1 . Heat Transferred 3367 | . 1258 . 2109 . Parts Sabotaged . | . . . . . Parts Stolen . | . . . . . Parts Stripped . | . . . . . Power Chain Reactions . | . . . . . Alert | -11 -10 -10 -10 -7 ------- Run | Yrd Mat Min Sub Rec Peak Influence 304 | . 304 78 . 20 Initial 28 | . . 28 . . Average 115 | . 147 62 . 7 Maximum Alert Level 1 | . 1 . . . Low Security (%) 88 | 100 82 100 . 100 Level 1 11 | . 17 . . . Level 2 . | . . . . . Level 3 . | . . . . . Level 4 . | . . . . . Level 5 . | . . . . . High Security . | . . . . . Max Security . | . . . . . Squads Dispatched 2 | . 2 . . . Investigation 2 | . 2 . . . Extermination . | . . . . . Reinforcement . | . . . . . Assault . | . . . . . Garrison . | . . . . . Intercept . | . . . . . Searches Triggered . | . . . . . Construction Impeded . | . . . . . Haulers Reinforced . | . . . . . Active Scanning Responses . | . . . . . Cargo Convoy Interrupts . | . . . . . Stealth | -11 -10 -10 -10 -7 --------- Run | Yrd Mat Min Sub Rec Distress Signals 1 | . 1 . . . Communications Jammed . | . . . . . Distress Signals . | . . . . . Times Spotted 49 | . 22 2 24 1 Peak Tracking Total 7 | . 7 2 4 1 Tactical Retreats 7 | . 1 . 6 . Traps | -11 -10 -10 -10 -7 ------- Run | Yrd Mat Min Sub Rec Traps Triggered 7 | . 2 . 5 . Indirectly . | . . . . . Trap Hack Attempts . | . . . . . Triggered . | . . . . . Disarmed . | . . . . . Reprogrammed . | . . . . . Reused . | . . . . . Traps Extracted . | . . . . . Installed . | . . . . . Triggered . | . . . . . Machines | -11 -10 -10 -10 -7 ---------- Run | Yrd Mat Min Sub Rec Machines Disabled 1 | . . . 1 . Max in Single Turn 1 | . . . 1 . Machines Repaired . | . . . . . Machines Dismantled . | . . . . . Machines Sabotaged . | . . . . . Overloaded Fab Kills . | . . . . . Hacking | -11 -10 -10 -10 -7 --------- Run | Yrd Mat Min Sub Rec Machines Accessed 12 | . 10 . 2 . Terminals 8 | . 8 . . . Fabricators . | . . . . . Repair Stations . | . . . . . Recycling Units 2 | . 2 . . . Scanalyzers . | . . . . . Garrison Access . | . . . . . Total Hacks 29 | . 24 . 5 . Successful 18 | . 13 . 5 . Failed 11 | . 11 . . . Catastrophic . | . . . . . Database Lockouts . | . . . . . Manual 21 | . 21 . . . Terminals 22 | . 22 . . . Fabricators . | . . . . . Repair Stations . | . . . . . Recycling Units 2 | . 2 . . . Scanalyzers . | . . . . . Garrison Access . | . . . . . Terminal Hacks 9 | . 4 . 5 . Record 4 | . . . 4 . Robot Analysis 2 | . 2 . . . Prototype ID Bank 1 | . 1 . . . Open Door 1 | . . . 1 . Unreport Threat 1 | . 1 . . . Fabricator Hacks . | . . . . . Repair Station Hacks . | . . . . . Recycling Unit Hacks . | . . . . . Scanalyzer . | . . . . . Garrison Access Hacks . | . . . . . Unauthorized Hacks 9 | . 9 . . . Terminals 7 | . 7 . . . Botnet 6 | . 6 . . . Disrupt 1 | . 1 . . . Fabricators . | . . . . . Repair Stations . | . . . . . Recycling Units 2 | . 2 . . . Tunnel 2 | . 2 . . . Scanalyzers . | . . . . . Garrison Access . | . . . . . Data Cores Recovered . | . . . . . Used . | . . . . . Hacking Detections 7 | . 7 . . . Full Trace Events . | . . . . . Feedback Events . | . . . . . Feedback Blocked . | . . . . . Robot Schematics Acquired . | . . . . . Robots Built . | . . . . . Authchips . | . . . . . Time . | . . . . . Total Robot Build Rating . | . . . . . Part Schematics Acquired . | . . . . . Parts Built . | . . . . . Authchips . | . . . . . Time . | . . . . . Total Part Build Rating . | . . . . . Parts Repaired . | . . . . . Time . | . . . . . Parts Recycled . | . . . . . Recycled Matter . | . . . . . Retrieved Matter . | . . . . . Retrieved Components . | . . . . . Parts Scanalyzed . | . . . . . Part Schematics Acquired . | . . . . . Parts Damaged . | . . . . . Bothacking | -11 -10 -10 -10 -7 ------------ Run | Yrd Mat Min Sub Rec Used RIF Installer . | . . . . . Robots Hacked . | . . . . . Non-combat . | . . . . . Combat . | . . . . . Robot Hacks Applied . | . . . . . Relay Couplers Released . | . . . . . Fabnet Peak Effective % . | . . . . . Robots Rewired . | . . . . . Allies Hacked . | . . . . . Hacks Repelled . | . . . . . Allies | -11 -10 -10 -10 -7 -------- Run | Yrd Mat Min Sub Rec Total Allies . | . . . . . Largest Group . | . . . . . Highest-Rated Group . | . . . . . Highest-Rated Ally . | . . . . . Total Orders . | . . . . . Ally Attacks . | . . . . . Total Damage . | . . . . . Kills . | . . . . . Allies Corrupted . | . . . . . Allies Melted . | . . . . . Intel | -11 -10 -10 -10 -7 ------- Run | Yrd Mat Min Sub Rec Robot Analysis Total 2 | . 2 . . . Derelict Logs Recovered 3 | . . 1 2 . Drone Launches . | . . . . . Drone Recoveries . | . . . . . Exploration | -11 -10 -10 -10 -7 ------------- Run | Yrd Mat Min Sub Rec Turns Passed 3639 | 46 860 345 2356 32 Spaces Moved 4137 | 43 772 626 2675 21 Core 2 | 2 . . . . Treads . | . . . . . Legs 1620 | . . . 1599 21 Wheels 771 | 41 730 . . . Hover . | . . . . . Flight 1744 | . 42 626 1076 . Fastest Speed 34 | 50 34 34 34 90 Average Speed 66 | 87 87 34 67 90 Slowest Speed 117 | 95 117 34 90 90 Overloaded Moves . | . . . . . Propulsion Burnouts . | . . . . . Robots Hopped 4 | . . 4 . . Cave-ins Triggered . | . . . . . Exploration Rate (%) 59 | 3 97 97 92 6 Regions Visited 4 Branch Regions 3 Pre-discovered Areas 3 | . 2 . 1 . Known Exits Taken 3 | . 1 1 1 . Unknown Exits Taken 1 | 1 . . . . Scrap Searched 17 | . . 2 15 . Spaces Dug 1 | . . . 1 . Terrain Destroyed 1 | . . . 1 . Melee 1 | . . . 1 . Projectile . | . . . . . AOE . | . . . . . Terrain Rammed . | . . . . . Walls Destroyed . | . . . . . Machines Disabled . | . . . . . Actions | -11 -10 -10 -10 -7 --------- Run | Yrd Mat Min Sub Rec Total 4664 | 48 874 748 2968 26 Wait 221 | . 39 119 63 . Move 4125 | 42 771 617 2674 21 Hop 4 | . . 4 . . Pick Up 3 | . . . 3 . Fast Attach 13 | 6 4 . 3 . Attach . | . . . . . Detach . | . . . . . Swap 8 | . 6 . 2 . Drop 5 | . 1 . 4 . Fire 95 | . 42 . 53 . Melee 135 | . . 3 127 5 Ram . | . . . . . Kick . | . . . . . Crush . | . . . . . Escape Stasis . | . . . . . Rewire . | . . . . . Trap . | . . . . . Miscellaneous 55 | . 11 5 39 . Route ------- -11/Scrapyard -10/Materials (discovered 4 exits: *Mat x3 / *Min) -10/Mines (discovered 3 exits: *Mat x2 / *Sub) -10/Subcaves (discovered 3 exits: *Mat x2 / *Rec) -7/Recycling History --------- Turn | Location | Event 1 | -11/Scrapyard | Upgraded with Power slot (x1) 1 | -11/Scrapyard | Upgraded with Propulsion slot (x1) 1 | -11/Scrapyard | Upgraded with Utility slot (x1) 1 | -11/Scrapyard | Upgraded with Weapon slot (x1) 27 | -11/Scrapyard | Discovered new exit (range 16) 47 | -11/Scrapyard | Entered Materials 103 | -10/Materials | Discovered new exit (range 11) 292 | -10/Materials | Discovered new exit (range 9) 321 | -10/Materials | Build established: Mutant 497 | -10/Materials | Discovered new exit (range 10) 696 | -10/Materials | Identified exit to Mines 717 | -10/Materials | Discovered new exit (range 12) 731 | -10/Materials | Reached level 2 890 | -10/Materials | Upgraded with Propulsion slot (x1) 907 | -10/Materials | Entered Mines 909 | -10/Mines | Met a Derelict bent on vengeance 909 | -10/Mines | Reached level 3 967 | -10/Mines | Learned Materials non-interactive machine intel 1043 | -10/Mines | Discovered new exit (range 6) 1046 | -10/Mines | Identified exit to Materials 1100 | -10/Mines | Discovered exit to Materials (range 6) 1187 | -10/Mines | Build established: Scavenger-Mutant 1249 | -10/Mines | Discovered new exit (range 3) 1252 | -10/Mines | Identified exit to Subcaves 1252 | -10/Mines | Entered Subcaves 1504 | -10/Subcaves | Visited Clippyterm 1505 | -10/Subcaves | Learned location of Deep Caves (-6) 1505 | -10/Subcaves | Learned Factory garrison access intel 1576 | -10/Subcaves | Upgraded with Utility slot (x1) 1581 | -10/Subcaves | Upgraded with Propulsion slot (x1) 1596 | -10/Subcaves | Discovered new exit (range 9) 1612 | -10/Subcaves | Discovered new exit (range 8) 1625 | -10/Subcaves | Reached level 4 1636 | -10/Subcaves | Shifting Twisted Machinery released Spk. Treads 1652 | -10/Subcaves | Shifting Twisted Machinery released Enh. Flamer 1743 | -10/Subcaves | Shifting Twisted Machinery released Mak. Light Armor Plating 1763 | -10/Subcaves | Shifting Twisted Machinery released Battle Rifle 1769 | -10/Subcaves | A swath of the cavern ceiling suddenly collapsed 1998 | -10/Subcaves | Visited 4L-MR0's lab 2007 | -10/Subcaves | Found Prototype Leg 2007 | -10/Subcaves | Identified Arachnoskeleton 2008 | -10/Subcaves | Attached Arachnoskeleton, gained temporary slots: Propulsion x3 2151 | -10/Subcaves | A swath of the cavern ceiling suddenly collapsed 2241 | -10/Subcaves | Learned Materials emergency access door positions 2246 | -10/Subcaves | Shifting Twisted Machinery released Sub. Power Source 2256 | -10/Subcaves | Shifting Twisted Machinery released Barrage Gun 2313 | -10/Subcaves | Build established: Derelict-Mutant 2751 | -10/Subcaves | Discovered new exit (range 13) 2762 | -10/Subcaves | Core integrity fell below 50% 2841 | -10/Subcaves | Identified exit to Materials 3607 | -10/Subcaves | Identified exit to Recycling 3608 | -10/Subcaves | Entered Recycling 3610 | -7/Recycling | Reached level 5 3610 | -7/Recycling | Reached level 6 3610 | -7/Recycling | Reached level 7 3623 | -7/Recycling | Core integrity fell below 20% 3628 | -7/Recycling | Reached level 8 3640 | -7/Recycling | Self-destructed Last Messages --------------- 03218_ Lgt. Ion Engine fries itself beyond repair. 03219_ Destroyed Flight Unit. 03223_ Flight Unit fries itself beyond repair. 03224_ S-10 Pest Lgt. Ion Engine severed. 03226_ Destroyed Lgt. Assault Rifle. 03226_ S-10 Pest destroyed. 03228_ Lgt. Assault Rifle fries itself beyond repair. 03607_ EXIT=IDENTIFIED: RECYCLING LOCATION=RECYCLING GOAL=ESCAPE 03610_ Reached level 5. 03610_ Reached level 6. 03610_ Reached level 7. 03618_ Sneak attack on Y-54 Guardian. 03619_ Y-54 Guardian springs to life. 03628_ Reached level 8. 03628_ Y-54 Guardian destroyed. 03631_ Upgraded: Core Integrity (+1800) Map ----- +----------------------------------------------------+ | ?????????????????????????????????????????? | | ?????????????????????????????????????????? | | ?????????????????????????????????????????? | | ?????????????????????????????????????????? | | ?????????????????????????????????????????? | | ?????????????????????????????????????????? | | ?????????????????????????????????????????? | | ?????????????????????????????????????????? | | ?????????????????????????????????????????? | | ?????????????????????????????????????????? | | ?????????????????????????????????????????? | | ?????????????????????????????????????????? | | ?????????????????????????????????????????? | | ?????????????????????????????????????????? | | ?????????????????????????????????????????? | | ??#####??????????????????????????????????? | | ### ###????????????????????????????????? | | # = ""#????????????????????????????????? | | #== Y"#????????????????????????????????? | | # = ""#????????????????????????????????? | | ### ###????????????????????????????????? | | ??# #??????????????????#???????????????? | | ??# #####+#####?????? ###?????????????? | | ??# ##### [[#?????????????? | | ??# ! r [ #?????????????? | | ??# =*%[!r @ [[#?????????????? | | ??######%#### #???????????????? | | ???????###??# +?????????????? | | ????????????# #### **#####?????????????? | | ????????????# #???***#?????????????????? | | ????????????# #????###?????????????????? | | ????????????+ #????????????????????????? | | ????????????# #????????????????????????? | | ????????????# ????????????????????????? | | ????????????+ ????????????????????????? | | ????????????# ????????????????????????? | | ????????????### #"???????????????????????? | | ??????????????? #"???????????????????????? | | ???????????????+#????????????????????????? | | ?????????????????????????????????????????? | | ?????????????????????????????????????????? | | ?????????????????????????????????????????? | | ?????????????????????????????????????????? | | ?????????????????????????????????????????? | | ?????????????????????????????????????????? | | ?????????????????????????????????????????? | | ?????????????????????????????????????????? | | ?????????????????????????????????????????? | | ?????????????????????????????????????????? | | ?????????????????????????????????????????? | +----------------------------------------------------+ Best States ------------- Heat Dissipation 55 Energy Generation 20 Energy Capacity 400 Matter Stores 300 Matter Capacity 300 Sight Range 16 Robot Scan Range 14 Terrain Scan Density 10 Armor Coverage 100 Resistance: KI 20 Resistance: TH 20 Resistance: EX 20 Resistance: EM 20 Resistance: I 20 Resistance: S 20 Resistance: P 20 Evasion (%) 63 Offensive Hacking 10 Item Schematics ----------------- None Robot Schematics ------------------ None Fabricated ------------ Nothing Alien Tech Used ----------------- None Achievements -------------- None Challenges ------------ None RPGLIKE | -11 -10 -10 -10 -7 --------- Run | Yrd Mat Min Sub Rec Levels Raised 7 | . 1 1 1 4 XP Earned 14511 | 4000 2575 750 2150 5036 XP Spent 14300 | 2000 1350 . 3750 7200 Upgrades 54 | 4 7 . 7 36 Power Slot 1 | 1 . . . . Propulsion Slot 3 | 1 1 . 1 . Utility Slot 2 | 1 . . 1 . Weapon Slot 1 | 1 . . . . Core Integrity 36 | . . . . 36 Heat Dissipation 5 | . 5 . . . Mass Support 2 | . 1 . 1 . Inventory Capacity 2 | . . . 2 . Melee Accuracy 2 | . . . 2 . Protomatter Created 482 | . 145 35 302 . Integrity Restored 1049 | . 170 79 800 . Core 791 | . 128 57 606 . Parts 258 | . 42 22 194 . Protomatter Decayed 199 | . 40 7 152 . Game ------ Seed CompanionDispersionGun Manual? 0 Play Time 00:42:53 Cumulative 128.7 hours Start 2024.10.02 @ 10:53:22 End 2024.10.02 @ 11:53:56 Sessions 1 Manual Loads 0 Difficulty Adventurer Special Mode Winter2019/RPGLIKE Game No. 72 Rogue 0 Adventurer 72 Explorer 0 Win Type - Total 6 Types 2/0/2/2/0/0/0/0/0 Lore% 59 Gallery% 57 Achievement% 71 Wizard Run 0 Options --------- Layout 2 ASCII 0 Keyboard 0 Movement Numpad Keybinds 0 Fullscreen 2 Font 24/Smallcaps Map View 50x44 Zoom Use 0% Tactical HUD 1 Map Filters NONE Filters NONE Steam 1 RUN: df3fdbb2-10a1-41ab-adef-e0279b9c1f50